Cogmind - Beta 13 @@@ ROGUE MODE // 2024.05.04 @ 13:21:35 Player: Lunace Result: Destroyed by Y-64 Sentinel with KE Penetrator Performance ------------- Evolutions (5) 2500 Regions Visited (19) 3800 Robots Destroyed (227) 1135 Value Destroyed (10863) 10863 Prototype IDs (37) 740 Alien Tech Used (0) 0 Bonus (8333) 8333 TOTAL SCORE: 27371 Bonus ------- High Alert Combat Kills 1577 Follower Combat Kills 4151 Entered Garrisons 1000 Used RIF Installer 2000 Aligned with FarCom 300 Built Enhanced Grunts 300 A7 Reached Mainframe 300 Friendly Fire -1295 Cogmind --------- Core Integrity 0/1000 Matter 80/300 Energy 340/340 System Corruption 25% Temperature Cool (9) Movement Treading (330) Ox2 Location -5/Garrison Parts ------- > --- POWER (1) -------- Particle Reactor > --- PROPULSION (4) --- Armored Medium Treads > --- UTILITY (8) ------ High-capacity Storage Unit Relay Coupler [Sentry] (1) > --- WEAPON (4) ------- Enhanced Gauss Cannon > --- INVENTORY (20) --- Advanced Energy Well (500) Enhanced Optical Array Improved Transmission Jammer Cloak of Protection Graphene Brace Improved Hacking Suite Improved Hacking Suite Improved Hacking Suite Relay Coupler [NC] (35) Heavy Laser KE Penetrator KE Penetrator Improved Remote Datajack Peak State ------------ > --- POWER ------------ Antimatter Reactor > --- PROPULSION ------- Armored Medium Treads Advanced VSS Leg Wheel Armored Wheel > --- UTILITY ---------- High-capacity Storage Unit Advanced Energy Well Centrium Medium Armor Plating Centrium Medium Armor Plating Advanced Shield Generator Improved Hacking Suite Improved Hacking Suite Long-range Tractor Beam > --- WEAPON ----------- Quantum Rifle KE Penetrator Enhanced Gauss Cannon Phasing Sabre > --- INVENTORY -------- Particle Reactor Armored Medium Treads Enhanced Optical Array Improved Transmission Jammer Cloak of Protection Improved Light Armor Plating Improved Medium Armor Plating Graphene Brace Graphene Brace Improved Hacking Suite Improved Hacking Suite Improved Hacking Suite Improved System Restoration Module Improved System Restoration Module Enhanced Gauss Cannon Improved Remote Datajack Improved Remote Datajack Improved Remote Datajack [Rating: 105] Favorites ----------- Power Light Antimatter Reactor Engine Light Angular Momentum Engine Power Core Neutrino Core Reactor Light Antimatter Reactor Propulsion Improved Treads Treads Improved Treads Leg Enhanced Armored Leg Wheel Wheel Hover Unit Improved Gyrokinetic Inverter Utility Large Storage Unit Device Remote Force Field Storage Large Storage Unit Processor Improved Launcher Guidance Computer Hackware Relay Coupler [Sentry] Protection Improved Light Armor Plating Weapon Enhanced Autogun Energy Gun Quantum Rifle Energy Cannon Proton Cannon Ballistic Gun Enhanced Autogun Ballistic Cannon Heavy Linear Accelerator Launcher Rocket Array Special Weapon Remote Datajack Impact Weapon Impact Mace Slashing Weapon Axe Piercing Weapon Heavy Pick Special Melee Weapon Advanced Datajack Build | -11 -10 -10 -10 -9 -8 -7 -7 -7 -7 -6 -6 -6 -6 -5 -5 -5 -5 -5 -5 ------- Run | Yrd Mat Min Exi Min Mat Fac Gar Fac Gar Fac Gar Fac Gar Fac Ext Cet Arc Hub Gar Slots Evolved 10 | . . . . . 4 2 . . . 2 . . . 2 . . . . . Power . | . . . . . . . . . . . . . . . . . . . . Propulsion 2 | . . . . . 2 . . . . . . . . . . . . . . Utility 6 | . . . . . 2 . . . . 2 . . . 2 . . . . . Weapon 2 | . . . . . . 2 . . . . . . . . . . . . . Parts Attached 314 | 6 9 1 4 1 18 7 9 2 46 31 9 20 13 66 24 11 2 14 21 Power 26 | 1 2 . . . 1 1 2 . 3 2 1 2 . 4 3 1 1 1 1 Engine 14 | 1 2 . . . 1 1 1 . 1 2 . . . 2 2 1 . . . Core 5 | . . . . . . . 1 . 1 . . 1 . 1 1 . . . . Reactor 7 | . . . . . . . . . 1 . 1 1 . 1 . . 1 1 1 Propulsion 60 | 2 2 . . . 4 1 1 1 11 6 2 1 . 21 1 . . 4 3 Treads 36 | 2 2 . . . 4 1 1 1 7 6 2 1 . 5 1 . . . 3 Leg 7 | . . . . . . . . . . . . . . 6 . . . 1 . Wheel 10 | . . . . . . . . . . . . . . 7 . . . 3 . Hover 7 | . . . . . . . . . 4 . . . . 3 . . . . . Flight . | . . . . . . . . . . . . . . . . . . . . Utility 126 | 1 3 . 3 . 4 2 4 1 13 15 6 8 10 24 10 5 . 5 12 Device 34 | . . . . . 1 . . . 4 3 3 2 2 7 4 . . 2 6 Storage 7 | 1 . . 2 . . . . . 2 . . . . 1 . . . 1 . Processor 8 | . 2 . . . . . . . . 1 . 1 . 4 . . . . . Hackware 39 | . . . . . . . . . 2 9 3 5 6 5 3 . . 2 4 Protection 38 | . 1 . 1 . 3 2 4 1 5 2 . . 2 7 3 5 . . 2 Artifact . | . . . . . . . . . . . . . . . . . . . . Weapon 102 | 2 2 1 1 1 9 3 2 . 19 8 . 9 3 17 10 5 1 4 5 Energy Gun 9 | . . . . . . . . . . . . 4 . 2 . . 1 1 1 Energy Cannon 4 | . . . . . 1 . . . . . . 1 1 1 . . . . . Ballistic Gun 32 | 2 2 . 1 1 5 1 2 . 5 . . . 1 7 . 3 . 1 1 Ballistic Cannon 13 | . . . . . . . . . 6 . . . . 1 3 1 . 1 1 Launcher 18 | . . 1 . . 2 1 . . 5 2 . 1 . 3 2 . . 1 . Special Weapon 12 | . . . . . . . . . 1 2 . 2 . 2 3 . . . 2 Impact Weapon 1 | . . . . . . . . . . 1 . . . . . . . . . Slashing Weapon 8 | . . . . . . 1 . . 1 3 . . . . 2 1 . . . Piercing Weapon 1 | . . . . . . . . . . . . . . 1 . . . . . Special Melee Weapon 4 | . . . . . 1 . . . 1 . . 1 1 . . . . . . Unidentified Prototypes 10 | . . . . . 2 1 . . 1 1 1 . . 1 . 2 . 1 . Parts Lost 70 | . . . . . . . 1 1 16 4 . 6 1 9 6 . . 5 21 Power 5 | . . . . . . . . . . 1 . 1 . 1 1 . . . 1 Propulsion 21 | . . . . . . . . 1 6 1 . 1 . 4 1 . . 2 5 Utility 22 | . . . . . . . 1 . 3 1 . 1 1 3 1 . . 1 10 Weapon 22 | . . . . . . . . . 7 1 . 3 . 1 3 . . 2 5 Highest Loss Streak 15 | . . . . . . . 1 1 9 3 . 2 1 4 2 . . 2 15 To Critical Strikes 1 | . . . . . . . . . 1 . . . . . . . . . . Average Slot Usage (%) 90 | . 96 100 100 100 99 96 99 100 90 85 81 81 80 89 88 98 100 96 80 Engine 3 | . 14 14 14 14 9 7 4 . . 1 1 . . 3 1 5 . . . Core 1 | . . . . . . . 2 7 5 . . . . . 3 . . . . Reactor 1 | . . . . . . . . . 1 4 4 5 6 . . . 4 5 4 Treads 17 | . 28 28 28 28 35 30 29 30 21 24 14 13 13 3 10 11 11 9 2 Wheel 3 | . . . . . . . . . . . . . . 10 11 11 11 8 9 Device 4 | . . . . . 1 7 . . 5 3 3 2 4 4 9 5 5 6 7 Storage 6 | . 14 14 14 14 9 7 7 7 7 6 6 6 6 5 5 5 5 6 6 Processor 1 | . 10 . . . . . . . . . . . . 3 2 . . . . Hackware 11 | . . . . . . . . . 2 18 28 28 21 18 13 11 11 11 9 Protection 9 | . . 14 14 14 24 15 21 23 12 3 . . . 6 6 21 23 19 12 Ballistic Gun 8 | . 28 20 14 14 12 18 15 15 10 . . . 4 7 . 10 11 12 4 Ballistic Cannon 1 | . . . . . . . . . 2 6 6 1 . . 4 5 1 . 1 Launcher 3 | . . 7 14 14 3 2 7 7 3 2 . 2 6 4 2 . . 1 . Special Weapon 3 | . . . . . . . . . 3 2 6 5 6 5 7 2 . . 1 Slashing Weapon 2 | . . . . . . 5 7 7 2 3 6 2 . . 1 2 5 5 4 Naked Turns . | . . . . . . . . . . . . . . . . . . . . Heaviest Build 118 | 14 23 23 38 39 54 53 62 62 88 89 66 66 60 93 111 118 118 115 105 Greatest Support 150 | 40 46 46 46 46 92 89 88 88 104 112 150 150 150 150 22 22 22 32 50 Greatest Overweight (x) 9 | . . . . . . . . . 3 . . . . 5 5 5 5 9 7 Average Overweight (x) 1 | . . . . . . . . . . . . . . 2 3 4 4 5 3 Largest Inventory Capacity 20 | 8 8 8 15 15 15 15 15 15 15 15 15 15 15 20 20 20 20 20 20 Average Capacity 15 | 7 8 8 9 15 15 15 15 15 14 15 15 15 15 17 20 20 20 20 20 Most Carried 20 | 2 8 8 9 12 15 15 15 15 15 15 15 15 14 20 20 17 19 20 20 Average Carried 14 | . 6 8 8 10 12 13 14 14 13 13 14 13 11 16 19 15 16 19 17 Final Capacity 20 | 8 8 8 15 15 15 15 15 15 15 15 15 15 15 20 20 20 20 20 20 Final Carried 20 | 2 8 8 8 12 15 15 15 14 15 10 15 8 14 20 18 16 19 19 13 Class Distribution -------------------- 32% | Bothacker-Skirmisher 18% | Bothacker-Tank 18% | Mutant 10% | Tank 9% | Scavenger-Tank 3% | Bothacker-Mutant Dominant Class ---------------- Mutant | -10/Materials Mutant | -10/Mines Mutant | -10/Exiles Mutant | -9/Mines Mutant | -8/Materials Tank | -7/Factory Tank | -7/Garrison Bothacker-Tank | -7/Factory Bothacker-Tank | -7/Garrison Bothacker-Skirmisher | -6/Factory Bothacker-Skirmisher | -6/Garrison Bothacker-Skirmisher | -6/Factory Bothacker-Skirmisher | -6/Garrison Bothacker-Skirmisher | -5/Factory Bothacker-Tank | -5/Extension Scavenger-Tank | -5/Cetus Scavenger-Tank | -5/Archives Scavenger-Tank | -5/Hub_04(d) Scavenger-Tank | -5/Garrison Resources | -11 -10 -10 -10 -9 -8 -7 -7 -7 -7 -6 -6 -6 -6 -5 -5 -5 -5 -5 -5 ----------- Run | Yrd Mat Min Exi Min Mat Fac Gar Fac Gar Fac Gar Fac Gar Fac Ext Cet Arc Hub Gar Matter Collected 8468 | 249 231 65 . 65 131 190 436 112 1018 691 295 559 490 1442 1452 276 74 500 192 Remotely 2422 | . . . . . . 40 . . . 65 20 390 241 . 1059 . . 495 112 Salvage Created 8692 | . 259 11 . 29 348 40 656 112 1005 486 590 447 67 2369 812 118 273 771 299 Parts 444 | . 19 . . 9 30 5 27 12 50 21 17 24 4 108 36 4 29 42 7 Haulers Intercepted 8 | . 2 . . . 2 . . . . . . . . 4 . . . . . Recyclers Shooed 6 | . . . . . 1 . . . . . . 1 . 2 2 . . . . Parts Field Recycled . | . . . . . . . . . . . . . . . . . . . . Retrieved Matter . | . . . . . . . . . . . . . . . . . . . . Parts Self-Destructed . | . . . . . . . . . . . . . . . . . . . . Prevented . | . . . . . . . . . . . . . . . . . . . . Kills | -11 -10 -10 -10 -9 -8 -7 -7 -7 -7 -6 -6 -6 -6 -5 -5 -5 -5 -5 -5 ------- Run | Yrd Mat Min Exi Min Mat Fac Gar Fac Gar Fac Gar Fac Gar Fac Ext Cet Arc Hub Gar Combat Hostiles Destroyed 161 | . 5 4 . 3 9 1 21 2 29 4 5 6 5 25 24 2 . 11 5 Melee 14 | . . . . . . . 7 . 2 . . . . . 2 . . . 3 Guns 50 | . 5 . . . 2 1 4 2 12 . . . . 11 2 1 . 8 2 Cannons 19 | . . . . . . . . . 2 1 5 . . 3 6 1 . 1 . AOE 73 | . . 4 . 3 7 . 10 . 13 3 . 6 5 6 14 . . 2 . Classes Destroyed 22 | . 4 1 . 1 5 1 2 . 1 1 . 2 . . 3 . . 1 . Worker 16 | . . . . . 1 . . . . . . . . 10 . . . 5 . Builder 16 | . . . . 1 1 . . . . 1 . 1 . 10 2 . . . . Tunneler 1 | . . . . . 1 . . . . . . . . . . . . . . Hauler 8 | . 2 . . . 2 . . . . . . . . 4 . . . . . Recycler 6 | . . . . . . . . . . 3 . 2 . . 1 . . . . Mechanic 3 | . . . . . 1 . . . . . . . . 2 . . . . . Operator 9 | . . . . . . . . . . . . 1 . . . . 8 . . Watcher 8 | . 2 . . . 1 . . . . . . . . 1 2 1 . 1 . Swarmer 35 | . 3 . . 3 3 . 8 . 6 3 . 1 3 . 5 . . . . Cutter 1 | . . . . . . . 1 . . . . . . . . . . . . Saboteur 1 | . . . . . . . . . . . . . . . 1 . . . . Grunt 65 | . 2 . . . 3 . 9 . 13 . 5 3 1 15 7 . . 5 2 Brawler 1 | . . . . . . . . . . . . . . . . . . . 1 Duelist 3 | . . . . . . . 1 . . . . . . . 1 . . . 1 Protector 1 | . . . . . . . . . . . . . . . . . . 1 . Sentry 12 | . . . . . 2 . 1 1 4 . . 1 . 1 1 . . . 1 Specialist 3 | . . . . . . . . . 1 . . 1 . . 1 . . . . Hunter 15 | . . . . . 1 . 1 . 2 1 . 1 . 3 3 . . 3 . Programmer 16 | . . . . . . 1 . 1 3 . . . 1 7 1 . . 2 . Heavy 1 | . . . . . . . . . . . . 1 . . . . . . . Behemoth 2 | . . . . . . . . . . . . . . . 2 . . . . Cetus Guard 2 | . . . . . . . . . . . . . . . . 2 . . . Assembled 4 | . . 4 . . . . . . . . . . . . . . . . . Savage 1 | . . . . . . . . . . . . . . . 1 . . . . Guerrilla 1 | . . . . . . . . . . . . . . . 1 . . . . Best Kill Streak 13 | . 4 4 . 3 12 1 5 1 6 3 2 9 3 13 10 2 5 5 3 Combat Bots Only 7 | . 3 4 . 3 7 1 5 1 6 3 2 6 3 6 7 1 . 4 3 Max Kills in Single Turn 5 | . 1 3 . 3 4 1 4 1 3 3 1 2 2 4 5 1 1 2 1 Gunslinging 1 | . . . . . . . . . 1 . . . . . . . . . . Exploded 4 | . . 3 . 3 3 . 4 . 3 3 . 1 2 2 3 . . 1 . Melee 1 | . . . . . . . 1 . 1 . . . . . 1 . . . 1 Uniques/NPCs Destroyed . | . . . . . . . . . . . . . . . . . . . . Combat | -11 -10 -10 -10 -9 -8 -7 -7 -7 -7 -6 -6 -6 -6 -5 -5 -5 -5 -5 -5 -------- Run | Yrd Mat Min Exi Min Mat Fac Gar Fac Gar Fac Gar Fac Gar Fac Ext Cet Arc Hub Gar Hostile Shots Fired 1271 | . 21 13 . 4 22 12 126 47 309 60 44 40 44 155 119 18 2 114 121 Missed 350 | . 4 3 . . 3 1 37 19 106 18 21 9 15 41 23 3 1 19 27 Damage Taken 17217 | . 207 226 . 56 347 163 1064 239 2746 1025 398 900 444 2433 2008 413 39 1495 3014 Core 1736 | . . 35 . 31 30 . 84 21 186 103 20 136 73 280 187 76 . 30 444 Absorbed by Shields 893 | . . . . . . . . . . . . . . 70 233 38 15 502 35 Regen/Repaired (Parts) 425 | . . . . . 108 . . . . . . . . 137 180 . . . . Core Remaining (%) 77 | 100 . . . 73 94 . . . 58 . . . 60 . . . . . . Volleys Fired 628 | . 25 5 . 2 20 7 15 8 71 23 26 39 43 122 131 16 2 42 31 Largest 3 | . 2 1 . 1 2 2 2 2 3 1 1 2 1 3 2 3 3 3 3 Hottest 184 | . 46 30 . 30 63 50 50 60 88 83 83 120 43 173 114 147 125 184 184 Shots Fired 924 | . 49 5 . 2 34 14 23 16 138 23 26 42 43 183 146 37 6 87 50 Gun 525 | . 49 3 . . 23 14 19 16 107 . . 7 16 119 17 23 4 77 31 Cannon 161 | . . . . . . . . . 19 7 19 5 . 25 51 14 2 6 13 Launcher 104 | . . 2 . 2 11 . 4 . 7 3 . 17 15 13 26 . . 4 . Special 134 | . . . . . . . . . 5 13 7 13 12 26 52 . . . 6 Kinetic 636 | . 49 3 . . 23 14 19 16 126 7 19 . 16 111 68 37 6 82 40 Thermal 7 | . . . . . . . . . . . . . . 2 . . . 1 4 Explosive 91 | . . 2 . 2 11 . 4 . 7 3 . 17 15 4 26 . . . . Electromagnetic 56 | . . . . . . . . . . . . 12 . 40 . . . 4 . Robot Hit Streak 26 | . 8 4 . 5 8 3 5 10 26 5 6 14 8 8 16 9 7 11 7 Robot Miss Streak 7 | . 4 1 . . 7 1 4 2 3 3 4 5 3 4 4 4 . 3 3 Penetration Max 2 | . . . . . . . . . 1 1 . . . 2 1 . . 1 . Secondary Targets 4 | . . . . . . . . . 2 . . . . 1 . . . 1 . Max Gunslinging Chain 1 | . . . . . . . . . 1 . . . . 1 . . . 1 . Shots Hit Robots 649 | . 32 4 . 1 26 10 38 14 95 28 26 30 25 111 89 23 14 50 33 Core Hits 434 | . 13 7 . 4 31 2 44 4 69 12 12 37 9 71 63 7 6 33 10 Critical Kills 6 | . . . . . . . . . 1 . . . . 1 1 1 . 1 1 Critical Parts Destroyed 8 | . . . . . . . . . . . . . . 2 1 . . 5 . Critical Strikes 28 | . . . . . . . 2 . 2 . 1 1 . 4 8 2 . 6 2 Burn 1 | . . . . . . . . . . . . . . 1 . . . . . Destroy 14 | . . . . . . . . . 1 . . . . 3 2 1 . 6 1 Blast 7 | . . . . . . . . . . . . . . . 6 1 . . . Sever 6 | . . . . . . . 2 . 1 . 1 1 . . . . . . 1 Melee Attacks 181 | . . . . . 5 1 52 2 22 23 27 10 . 1 5 3 9 5 16 Impact . | . . . . . . . . . . . . . . . . . . . . Slashing 162 | . . . . . . 1 52 2 21 15 27 6 . . 5 3 9 5 16 Piercing 1 | . . . . . . . . . . . . . . 1 . . . . . Sneak Attacks 25 | . . . . . 5 . 1 . . 6 . 3 . . 1 . 8 1 . Combat Hostiles 2 | . . . . . . . 1 . . . . . . . 1 . . . . Follow-up Attacks . | . . . . . . . . . . . . . . . . . . . . Damage Inflicted 28713 | . 465 287 . 187 1090 232 2289 303 3388 1407 1784 1830 866 5317 4866 705 923 1942 832 Guns 7865 | . 465 41 . . 327 198 228 303 1593 . . 26 220 2302 209 331 72 1317 233 Cannons 3592 | . . . . . . . . . 104 366 615 124 . 591 1095 374 31 140 152 Explosions 12980 | . . 246 . 187 756 . 1196 . 1482 712 . 1546 646 2424 3449 . . 336 . Melee 4269 | . . . . . . 34 865 . 209 329 1169 134 . . 113 . 820 149 447 Ramming 7 | . . . . . 7 . . . . . . . . . . . . . . Kinetic 10602 | . 465 41 . . 327 198 228 303 1697 366 615 . 220 2215 1304 705 103 1457 358 Thermal 256 | . . . . . . . . . . . . . . 229 . . . . 27 Explosive 11218 | . . 246 . 187 756 . 1196 . 1482 712 . 1546 646 998 3449 . . . . Electromagnetic 2361 | . . . . . . . . . . . . 150 . 1875 . . . 336 . Impact . | . . . . . . . . . . . . . . . . . . . . Slashing 4269 | . . . . . . 34 865 . 209 329 1169 134 . . 113 . 820 149 447 Piercing . | . . . . . . . . . . . . . . . . . . . . Highest Corruption 27 | . 2 2 2 2 . 1 1 2 2 . . 2 1 2 . . . 6 27 Average Corruption 2 | . 2 2 2 2 . 1 1 1 2 . . 1 1 1 . . . 3 8 Corruption Purged 15 | . . . . . . . . . . . . 2 1 4 . . . . 8 Corruption Blocked 8 | . . . . . . . . . . . . 8 . . . . . . . Effects 74 | . 4 3 8 5 . . 9 4 18 . . 3 2 3 . . . 5 10 Message Errors 21 | . 1 1 3 1 . . 3 2 4 . . 1 1 . . . . 2 2 Matter Fused 15 | . 1 . 1 3 . . . 1 3 . . 2 . 1 . . . 1 2 Heat Flow Errors 11 | . . . 2 1 . . 2 1 4 . . . . . . . . . 1 Energy Discharges 8 | . . 1 1 . . . 2 . 2 . . . . . . . . 1 1 Parts Rejected 1 | . . . . . . . . . . . . . . . . . . . 1 Parts Fused 1 | . . . . . . . . . 1 . . . . . . . . . . Data Loss (minor) 5 | . 1 . 1 . . . 1 . 2 . . . . . . . . . . Data Loss (major) 2 | . . 1 . . . . 1 . . . . . . . . . . . . Misfires 2 | . . . . . . . . . . . . . . 2 . . . . . Alerts 4 | . . . . . . . . . 2 . . . 1 . . . . 1 . Misdirections 1 | . . . . . . . . . . . . . . . . . . . 1 Weapon Failures 3 | . 1 . . . . . . . . . . . . . . . . . 2 Overload Shots . | . . . . . . . . . . . . . . . . . . . . Overflow Damage 757 | . . . . . 14 . 34 . 26 129 8 46 67 92 44 . 224 64 9 Projectiles 60 | . . . . . . . . . . 34 . 1 . . 25 . . . . Explosions 271 | . . . . . 14 . 8 . 25 1 . 45 67 92 19 . . . . Melee 426 | . . . . . . . 26 . 1 94 8 . . . . . 224 64 9 Knockbacks 20 | . . . . . . . . . . 3 . . . 2 10 . . 1 4 Impact . | . . . . . . . . . . . . . . . . . . . . Kinetic 20 | . . . . . . . . . . 3 . . . 2 10 . . 1 4 Secondary . | . . . . . . . . . . . . . . . . . . . . Self-Inflicted Damage 912 | . . 47 . . 56 . 18 . 351 87 . 73 127 106 19 . . 28 . Shots 36 | . . 2 . . 3 . 1 . 15 1 . 2 4 6 1 . . 1 . Rammed 1 | . . . . . 1 . . . . . . . . . . . . . . Targets Rammed 1 | . . . . . 1 . . . . . . . . . . . . . . Kicked . | . . . . . . . . . . . . . . . . . . . . Crushed . | . . . . . . . . . . . . . . . . . . . . Highest Temperature 589 | . 22 4 209 127 167 20 263 135 332 44 70 72 5 589 288 468 52 102 525 Average Temperature 108 | . 7 2 91 47 56 8 70 63 113 23 31 26 5 130 79 281 28 23 272 Received Heat Transfer 3169 | . 81 . . . 72 . 492 72 549 120 156 87 45 408 455 9 4 109 510 Effects 29 | . . . . . . . . . 3 . . . . 12 . 9 . . 5 Shutdowns 10 | . . . . . . . . . 1 . . . . 1 . 5 . . 3 Energy Bleed 3 | . . . . . . . . . . . . . . 2 . 1 . . . Matter Decay 4 | . . . . . . . . . 1 . . . . 2 . . . . 1 Short Circuit 3 | . . . . . . . . . 1 . . . . 1 . . . . 1 Damage (minor) 4 | . . . . . . . . . . . . . . 1 . 3 . . . Damage (major) 4 | . . . . . . . . . . . . . . 4 . . . . . Damage (core) 1 | . . . . . . . . . . . . . . 1 . . . . . Siege Activations . | . . . . . . . . . . . . . . . . . . . . Robots Corrupted 6 | . . . . . . . . . . . . . . 6 . . . . . Combat Hostiles 5 | . . . . . . . . . . . . . . 5 . . . . . Parts Fried 14 | . . . . . . . . . . . . . . 14 . . . . . Impact Corruptions . | . . . . . . . . . . . . . . . . . . . . Robots Melted . | . . . . . . . . . . . . . . . . . . . . Combat Hostiles . | . . . . . . . . . . . . . . . . . . . . Parts Melted 1 | . . . . . . . . . . . . . . 1 . . . . . Heat Transferred 437 | . . . . . . . . . . . . . . 400 . . . . 37 Parts Sabotaged . | . . . . . . . . . . . . . . . . . . . . Parts Stolen . | . . . . . . . . . . . . . . . . . . . . Parts Stripped . | . . . . . . . . . . . . . . . . . . . . Power Chain Reactions 4 | . . . . . . . . . . . . . . 4 . . . . . Alert | -11 -10 -10 -10 -9 -8 -7 -7 -7 -7 -6 -6 -6 -6 -5 -5 -5 -5 -5 -5 ------- Run | Yrd Mat Min Exi Min Mat Fac Gar Fac Gar Fac Gar Fac Gar Fac Ext Cet Arc Hub Gar Peak Influence 1230 | . 198 94 . 94 342 155 722 460 1230 755 756 422 615 672 841 491 316 872 614 Initial 645 | . . 76 . . . 155 21 378 322 645 310 396 295 322 168 464 116 110 525 Average 417 | . 45 85 . 21 123 63 353 411 752 554 541 256 526 460 619 457 266 371 539 Maximum Alert Level 4 | . . . . . 1 . 3 2 4 3 3 2 2 2 3 2 1 3 2 Low Security (%) 24 | 100 100 100 . 100 65 100 29 . . . . 31 . . 5 . 12 44 . Level 1 20 | . . . . . 34 . 23 24 18 . 27 39 9 40 18 5 87 12 . Level 2 40 | . . . . . . . 37 75 22 90 65 29 90 59 17 94 . 19 100 Level 3 13 | . . . . . . . 10 . 40 8 6 . . . 58 . . 23 . Level 4 1 | . . . . . . . . . 18 . . . . . . . . . . Level 5 . | . . . . . . . . . . . . . . . . . . . . High Security . | . . . . . . . . . . . . . . . . . . . . Max Security . | . . . . . . . . . . . . . . . . . . . . Squads Dispatched 42 | . 1 . . . 3 1 . 1 . 4 . 10 . 8 4 . . 10 . Investigation 4 | . 1 . . . . . . . . . . . . 1 . . . 2 . Extermination 9 | . . . . . . 1 . 1 . 2 . 2 . 2 . . . 1 . Reinforcement 20 | . . . . . 3 . . . . 1 . 7 . 3 1 . . 5 . Assault 8 | . . . . . . . . . . 1 . . . 2 3 . . 2 . Garrison 1 | . . . . . . . . . . . . 1 . . . . . . . Intercept . | . . . . . . . . . . . . . . . . . . . . Searches Triggered . | . . . . . . . . . . . . . . . . . . . . Construction Impeded 5 | . . . . . . . . . . 1 . 1 . 1 1 . . 1 . Haulers Reinforced 4 | . . . . . . . . . . . . 1 . 2 . . . 1 . Active Scanning Responses . | . . . . . . . . . . . . . . . . . . . . Cargo Convoy Interrupts 1 | . . . . . . . . . . . . 1 . . . . . . . Stealth | -11 -10 -10 -10 -9 -8 -7 -7 -7 -7 -6 -6 -6 -6 -5 -5 -5 -5 -5 -5 --------- Run | Yrd Mat Min Exi Min Mat Fac Gar Fac Gar Fac Gar Fac Gar Fac Ext Cet Arc Hub Gar Distress Signals 7 | . 2 . . . 1 . . . . . . . . 1 2 1 . . . Communications Jammed 67 | . . . . . . . . . . . . . . 2 65 . . . . Distress Signals 67 | . . . . . . . . . . . . . . 2 65 . . . . Times Spotted 339 | . 9 8 . 3 12 1 18 2 30 29 23 26 15 39 56 5 8 29 26 Peak Tracking Total 17 | . 5 5 . 3 5 1 5 1 5 8 6 6 4 4 10 5 1 7 17 Tactical Retreats 13 | . 1 . . . 1 . 1 . 1 . . . 1 . 1 . . . 7 Traps | -11 -10 -10 -10 -9 -8 -7 -7 -7 -7 -6 -6 -6 -6 -5 -5 -5 -5 -5 -5 ------- Run | Yrd Mat Min Exi Min Mat Fac Gar Fac Gar Fac Gar Fac Gar Fac Ext Cet Arc Hub Gar Traps Triggered 19 | . 2 . . 1 1 . . . 4 1 1 . 1 1 6 . . . 1 Indirectly . | . . . . . . . . . . . . . . . . . . . . Trap Hack Attempts . | . . . . . . . . . . . . . . . . . . . . Triggered . | . . . . . . . . . . . . . . . . . . . . Disarmed . | . . . . . . . . . . . . . . . . . . . . Reprogrammed . | . . . . . . . . . . . . . . . . . . . . Reused . | . . . . . . . . . . . . . . . . . . . . Traps Extracted . | . . . . . . . . . . . . . . . . . . . . Installed . | . . . . . . . . . . . . . . . . . . . . Triggered 2 | . . . . . . . . . . . . 2 . . . . . . . Machines | -11 -10 -10 -10 -9 -8 -7 -7 -7 -7 -6 -6 -6 -6 -5 -5 -5 -5 -5 -5 ---------- Run | Yrd Mat Min Exi Min Mat Fac Gar Fac Gar Fac Gar Fac Gar Fac Ext Cet Arc Hub Gar Machines Disabled 51 | . . . . 1 1 . 2 1 5 2 5 1 2 10 7 1 . 10 3 Max in Single Turn 3 | . . . . 1 1 . 1 1 1 1 1 1 1 3 2 1 . 2 1 Garrison Access 1 | . . . . . . . . . . . . . . 1 . . . . . Garrison Relay 11 | . . . . . . . 2 . 3 . 3 . 2 . . . . . 1 Machines Repaired . | . . . . . . . . . . . . . . . . . . . . Machines Dismantled 3 | . . . . . . . . . . . . . . . 3 . . . . Machines Sabotaged . | . . . . . . . . . . . . . . . . . . . . Overloaded Fab Kills . | . . . . . . . . . . . . . . . . . . . . Hacking | -11 -10 -10 -10 -9 -8 -7 -7 -7 -7 -6 -6 -6 -6 -5 -5 -5 -5 -5 -5 --------- Run | Yrd Mat Min Exi Min Mat Fac Gar Fac Gar Fac Gar Fac Gar Fac Ext Cet Arc Hub Gar Machines Accessed 46 | . 6 . 2 . 5 1 2 2 3 5 . 5 . 6 2 3 1 3 . Terminals 26 | . 5 . . . 3 . 2 1 3 1 . 2 . 2 2 3 . 2 . Fabricators 4 | . . . . . . . . . . 2 . . . 2 . . . . . Repair Stations 4 | . . . . . 1 . . . . . . 1 . 2 . . . . . Recycling Units 3 | . 1 . . . . . . . . 1 . 1 . . . . . . . Scanalyzers 1 | . . . . . 1 . . . . . . . . . . . . . . Garrison Access 5 | . . . . . . 1 . 1 . 1 . 1 . . . . . 1 . Total Hacks 147 | . 18 . 2 . 19 1 3 4 6 17 . 11 . 14 4 8 25 15 . Successful 94 | . 11 . 2 . 10 1 1 2 3 13 . 7 . 5 1 3 25 10 . Failed 53 | . 7 . . . 9 . 2 2 3 4 . 4 . 9 3 5 . 5 . Catastrophic 13 | . 1 . . . 1 . . . . . . 2 . 2 2 3 . 2 . Database Lockouts . | . . . . . . . . . . . . . . . . . . . . Manual 81 | . 18 . 1 . 14 . . 2 . 11 . 8 . 7 4 1 2 13 . Terminals 77 | . 16 . . . 13 . 3 2 6 4 . 6 . 4 4 8 . 11 . Fabricators 9 | . . . . . . . . . . 6 . . . 3 . . . . . Repair Stations 11 | . . . . . 3 . . . . . . 1 . 7 . . . . . Recycling Units 9 | . 2 . . . . . . . . 5 . 2 . . . . . . . Scanalyzers 3 | . . . . . 3 . . . . . . . . . . . . . . Garrison Access 11 | . . . . . . 1 . 2 . 2 . 2 . . . . . 4 . Terminal Hacks 44 | . 3 . 2 . 1 . 1 . 3 . . 1 . . 1 3 25 4 . Record 28 | . . . 1 . . . . . . . . . . . . 2 25 . . Open Door 2 | . . . . . . . . . 1 . . . . . . 1 . . . Emergency Access Points 1 | . . . . . . . . . 1 . . . . . . . . . . Terminal Index 3 | . . . . . 1 . . . . . . 1 . . . . . 1 . Fabricator Index 1 | . . . . . . . . . . . . . . . . . . 1 . Locate Traps 2 | . 1 . . . . . . . . . . . . . 1 . . . . Recall Investigation 1 | . 1 . . . . . . . . . . . . . . . . . . Recall Reinforcements 1 | . . . . . . . . . . . . . . . . . . 1 . Zone Layout 2 | . 1 . . . . . . . . . . . . . . . . 1 . Garrison Registry 1 | . . . . . . . . . 1 . . . . . . . . . . Patrol Navigation 1 | . . . . . . . 1 . . . . . . . . . . . . Derelict Proto ID Bank 1 | . . . 1 . . . . . . . . . . . . . . . . Fabricator Hacks 2 | . . . . . . . . . . 1 . . . 1 . . . . . Network Status 2 | . . . . . . . . . . 1 . . . 1 . . . . . Repair Station Hacks 5 | . . . . . 2 . . . . . . . . 3 . . . . . Scan Component 3 | . . . . . 1 . . . . . . . . 2 . . . . . Repair 2 | . . . . . 1 . . . . . . . . 1 . . . . . Recycling Unit Hacks 2 | . . . . . . . . . . 2 . . . . . . . . . Report Inventory 1 | . . . . . . . . . . 1 . . . . . . . . . Retrieve Components 1 | . . . . . . . . . . 1 . . . . . . . . . Scanalyzer 3 | . . . . . 3 . . . . . . . . . . . . . . Insert Component 2 | . . . . . 2 . . . . . . . . . . . . . . Analyze 1 | . . . . . 1 . . . . . . . . . . . . . . Garrison Access Hacks 9 | . . . . . . 1 . 2 . 2 . 2 . . . . . 2 . Unlock Access 5 | . . . . . . 1 . 1 . 1 . 1 . . . . . 1 . Coupler Status 4 | . . . . . . . . 1 . 1 . 1 . . . . . 1 . Unauthorized Hacks 29 | . 8 . . . 4 . . . . 8 . 4 . 1 . . . 4 . Terminals 15 | . 6 . . . 3 . . . . 2 . 2 . . . . . 2 . Track 1 | . . . . . . . . . . 1 . . . . . . . . . Botnet 9 | . 5 . . . 2 . . . . . . 1 . . . . . 1 . Disrupt 1 | . . . . . . . . . . 1 . . . . . . . . . Operators 4 | . 1 . . . 1 . . . . . . 1 . . . . . 1 . Fabricators 4 | . . . . . . . . . . 4 . . . . . . . . . Report 1 | . . . . . . . . . . 1 . . . . . . . . . Prioritize 1 | . . . . . . . . . . 1 . . . . . . . . . Fabnet 1 | . . . . . . . . . . 1 . . . . . . . . . Haulers 1 | . . . . . . . . . . 1 . . . . . . . . . Repair Stations 2 | . . . . . 1 . . . . . . . . 1 . . . . . Mechanics 2 | . . . . . 1 . . . . . . . . 1 . . . . . Recycling Units 6 | . 2 . . . . . . . . 2 . 2 . . . . . . . Monitor 3 | . 1 . . . . . . . . 1 . 1 . . . . . . . Recyclers 3 | . 1 . . . . . . . . 1 . 1 . . . . . . . Scanalyzers . | . . . . . . . . . . . . . . . . . . . . Garrison Access 2 | . . . . . . . . . . . . . . . . . . 2 . Reprogram 1 | . . . . . . . . . . . . . . . . . . 1 . Watchers 1 | . . . . . . . . . . . . . . . . . . 1 . Data Cores Recovered 1 | . . . . . . . . . . . . 1 . . . . . . . Used . | . . . . . . . . . . . . . . . . . . . . Hacking Detections 36 | . 5 . . . 5 . 2 2 1 4 . 5 . 5 2 2 . 3 . Full Trace Events 3 | . 1 . . . . . 1 . . . . . . 1 . . . . . Feedback Events . | . . . . . . . . . . . . . . . . . . . . Feedback Blocked . | . . . . . . . . . . . . . . . . . . . . Robot Schematics Acquired . | . . . . . . . . . . . . . . . . . . . . Robots Built . | . . . . . . . . . . . . . . . . . . . . Authchips . | . . . . . . . . . . . . . . . . . . . . Time . | . . . . . . . . . . . . . . . . . . . . Total Robot Build Rating . | . . . . . . . . . . . . . . . . . . . . Part Schematics Acquired 1 | . . . . . 1 . . . . . . . . . . . . . . Parts Built . | . . . . . . . . . . . . . . . . . . . . Authchips . | . . . . . . . . . . . . . . . . . . . . Time . | . . . . . . . . . . . . . . . . . . . . Total Part Build Rating . | . . . . . . . . . . . . . . . . . . . . Parts Repaired 2 | . . . . . 1 . . . . . . . . 1 . . . . . Time 82 | . . . . . 32 . . . . . . . . 50 . . . . . Parts Recycled . | . . . . . . . . . . . . . . . . . . . . Recycled Matter . | . . . . . . . . . . . . . . . . . . . . Retrieved Matter . | . . . . . . . . . . . . . . . . . . . . Retrieved Components 7 | . . . . . . . . . . 7 . . . . . . . . . Parts Scanalyzed 1 | . . . . . 1 . . . . . . . . . . . . . . Part Schematics Acquired 1 | . . . . . 1 . . . . . . . . . . . . . . Parts Damaged . | . . . . . . . . . . . . . . . . . . . . Bothacking | -11 -10 -10 -10 -9 -8 -7 -7 -7 -7 -6 -6 -6 -6 -5 -5 -5 -5 -5 -5 ------------ Run | Yrd Mat Min Exi Min Mat Fac Gar Fac Gar Fac Gar Fac Gar Fac Ext Cet Arc Hub Gar Used RIF Installer 4 | . . . . . . . 1 . 1 . 1 . 1 . . . . . . Threat Obfuscator 1 | . . . . . . . . . . . 1 . . . . . . . . Zone Cloak 1 | . . . . . . . . . 1 . . . . . . . . . . Autoassimilate 1 | . . . . . . . . . . . . . 1 . . . . . . Robots Hacked 84 | . . . . . 2 . . . . 15 5 15 9 21 5 . . 4 8 Non-combat 19 | . . . . . 2 . . . . 3 . 3 . 11 . . . . . Combat 65 | . . . . . . . . . . 12 5 12 9 10 5 . . 4 8 Autoassimilated 6 | . . . . . . . . . . . . . . 1 1 . . . 4 Robot Hacks Applied 73 | . . . . . 3 . . . . 17 5 15 9 17 3 . . . 4 no_distress 3 | . . . . . 2 . . . . . . . . 1 . . . . . find_fabricator 1 | . . . . . . . . . . . . 1 . . . . . . . drop_inventory 4 | . . . . . . . . . . . . . . 4 . . . . . find_recycling 2 | . . . . . . . . . . 1 . . . 1 . . . . . find_station 1 | . . . . . 1 . . . . . . . . . . . . . . purge_threat 2 | . . . . . . . . . . 2 . . . . . . . . . map_route 1 | . . . . . . . . . . . . . . 1 . . . . . link_fov 3 | . . . . . . . . . . 1 . 1 . 1 . . . . . amplify_resonance 4 | . . . . . . . . . . 1 . . . . 1 . . . 2 disable_weapons 3 | . . . . . . . . . . 2 . 1 . . . . . . . reboot_system 2 | . . . . . . . . . . . . 1 1 . . . . . . go_dormant 1 | . . . . . . . . . . . . . . . . . . . 1 overwrite_iff 7 | . . . . . . . . . . . . . 2 2 2 . . . 1 formatsys_low 3 | . . . . . . . . . . . . . . 3 . . . . . formatsys_high 36 | . . . . . . . . . . 10 5 11 6 4 . . . . . Relay Couplers Released 51 | . . . . . . . 7 . 13 . 14 . 10 2 . . . . 5 Machine Destruction 51 | . . . . . . . 7 . 13 . 14 . 10 2 . . . . 5 Attached 36 | . . . . . . . . . 2 9 3 5 6 4 3 . . . 4 Fabnet Peak Effective % 3 | . . . . . . . . . . . . . . 3 3 3 3 3 3 Autooverrided 8 | . . . . . . . . . . . . . . 3 1 . . 4 . Robots Rewired 26 | . . . . . . . . . 2 . . . . . 23 . . . 1 Allies Hacked 4 | . . . . . . . . . . . . 1 1 2 . . . . . Hacks Repelled . | . . . . . . . . . . . . . . . . . . . . Allies | -11 -10 -10 -10 -9 -8 -7 -7 -7 -7 -6 -6 -6 -6 -5 -5 -5 -5 -5 -5 -------- Run | Yrd Mat Min Exi Min Mat Fac Gar Fac Gar Fac Gar Fac Gar Fac Ext Cet Arc Hub Gar Total Allies 99 | . . . . . . . . . 4 10 5 11 8 13 31 5 . 6 6 Largest Group 13 | . . . . . . . . . 2 6 5 10 4 3 13 7 6 8 3 Highest-Rated Group 665 | . . . . . . . . . 160 246 224 313 131 117 475 616 616 665 126 Highest-Rated Ally 159 | . . . . . . . . . 80 90 90 43 41 54 159 152 136 96 49 Total Orders 70 | . . . . . . . . . . 21 . 8 2 13 24 . . 2 . STAY 27 | . . . . . . . . . . 10 . 4 1 2 9 . . 1 . FOLLOW 25 | . . . . . . . . . . 10 . 4 1 3 6 . . 1 . GUARD 1 | . . . . . . . . . . 1 . . . . . . . . . AID 16 | . . . . . . . . . . . . . . 7 9 . . . . DROP 1 | . . . . . . . . . . . . . . 1 . . . . . Ally Attacks 579 | . . . . . . . . . 14 36 49 79 36 28 218 17 24 69 9 Total Damage 16587 | . . . . . . . . . 478 1241 1495 1745 1054 585 4689 485 846 3630 339 Kills 108 | . . . . . . . . . 2 16 11 11 7 2 29 2 4 23 1 Allies Corrupted 5 | . . . . . . . . . 1 . . . . 1 1 . . 2 . Allies Melted . | . . . . . . . . . . . . . . . . . . . . Intel | -11 -10 -10 -10 -9 -8 -7 -7 -7 -7 -6 -6 -6 -6 -5 -5 -5 -5 -5 -5 ------- Run | Yrd Mat Min Exi Min Mat Fac Gar Fac Gar Fac Gar Fac Gar Fac Ext Cet Arc Hub Gar Robot Analysis Total . | . . . . . . . . . . . . . . . . . . . . Derelict Logs Recovered 2 | . . 2 . . . . . . . . . . . . . . . . . Drone Launches . | . . . . . . . . . . . . . . . . . . . . Drone Recoveries . | . . . . . . . . . . . . . . . . . . . . Exploration | -11 -10 -10 -10 -9 -8 -7 -7 -7 -7 -6 -6 -6 -6 -5 -5 -5 -5 -5 -5 ------------- Run | Yrd Mat Min Exi Min Mat Fac Gar Fac Gar Fac Gar Fac Gar Fac Ext Cet Arc Hub Gar Turns Passed 17475 | 79 707 247 470 406 793 994 987 305 1566 1670 850 1244 792 2472 1840 425 331 907 390 Spaces Moved 8991 | 46 363 137 289 239 385 532 474 166 837 883 413 615 384 1373 951 177 179 413 135 Core 8 | 4 . . . . . . . . 4 . . . . . . . . . . Treads 5649 | 42 363 137 289 239 385 532 474 166 538 883 413 615 384 171 . . . . 18 Legs 17 | . . . . . . . . . . . . . . 17 . . . . . Wheels 2981 | . . . . . . . . . . . . . . 1144 951 177 179 413 117 Hover 336 | . . . . . . . . . 295 . . . . 41 . . . . . Flight . | . . . . . . . . . . . . . . . . . . . . Fastest Speed 48 | 50 160 160 160 160 160 158 158 158 48 160 160 160 160 95 130 145 145 128 128 Average Speed 152 | 150 160 160 160 160 161 161 158 158 136 160 160 160 160 133 144 148 158 175 154 Slowest Speed 330 | 160 160 160 160 160 162 162 158 158 240 160 160 160 160 320 160 160 160 225 330 Overloaded Moves . | . . . . . . . . . . . . . . . . . . . . Propulsion Burnouts . | . . . . . . . . . . . . . . . . . . . . Robots Hopped . | . . . . . . . . . . . . . . . . . . . . Cave-ins Triggered 3 | . . . . . . . . . . . . . . . . . . . 3 Exploration Rate (%) 44 | 4 75 33 70 56 37 12 56 7 82 18 46 13 46 36 80 75 98 39 14 Regions Visited 19 Branch Regions 7 Pre-discovered Areas 2 | . . 1 1 . . . . . . . . . . . . . . . . Known Exits Taken 5 | . . . . . . 1 . 1 . 1 . 1 . . . . . 1 . Unknown Exits Taken 10 | 1 1 1 1 1 1 . . . . . . . . 1 1 1 1 . . Scrap Searched 2 | . . 1 . 1 . . . . . . . . . . . . . . . Spaces Dug 101 | . . . . . . . 3 1 5 8 7 67 . 1 . . . 3 6 Terrain Destroyed 945 | . . 21 . 4 68 . 25 2 74 54 10 160 204 101 171 8 1 21 21 Melee 26 | . . . . . . . 3 1 5 8 2 3 . 1 . . . 3 . Projectile 104 | . . . . . . . . 1 9 3 8 . . 17 18 8 1 18 21 AOE 814 | . . 21 . 4 68 . 22 . 60 43 . 157 204 83 152 . . . . Terrain Rammed . | . . . . . . . . . . . . . . . . . . . . Walls Destroyed . | . . . . . . . . . . . . . . . . . . . . Machines Disabled . | . . . . . . . . . . . . . . . . . . . . Actions | -11 -10 -10 -10 -9 -8 -7 -7 -7 -7 -6 -6 -6 -6 -5 -5 -5 -5 -5 -5 --------- Run | Yrd Mat Min Exi Min Mat Fac Gar Fac Gar Fac Gar Fac Gar Fac Ext Cet Arc Hub Gar Total 11672 | 53 441 159 297 261 522 661 602 192 1114 1097 534 828 520 1852 1271 303 211 507 247 Wait 1146 | . 22 17 . 15 75 96 38 13 72 120 31 130 65 220 92 90 6 21 23 Move 8976 | 45 362 136 288 238 384 532 473 166 836 883 412 615 383 1372 950 176 178 412 135 Hop . | . . . . . . . . . . . . . . . . . . . . Pick Up 144 | 2 11 . 1 4 10 7 6 . 22 6 14 3 11 19 9 1 7 4 7 Fast Attach 148 | 6 3 . 2 1 6 4 3 . 28 8 4 10 4 46 7 4 1 8 3 Attach 84 | . . . . . 5 1 1 1 11 12 2 8 4 8 9 4 . 6 12 Detach 28 | . . . . . 1 . . . 4 3 1 1 1 7 4 1 1 2 2 Swap 82 | . 6 1 2 . 7 2 5 1 7 11 3 2 5 12 8 3 1 . 6 Drop 185 | . 12 . 4 1 8 11 9 1 28 8 14 10 4 45 8 5 6 7 4 Fire 628 | . 25 5 . 2 20 7 15 8 71 23 26 39 43 122 131 16 2 42 31 Melee 181 | . . . . . 5 1 52 2 22 23 27 10 . 1 5 3 9 5 16 Ram . | . . . . . . . . . . . . . . . . . . . . Kick . | . . . . . . . . . . . . . . . . . . . . Crush 1 | . . . . . 1 . . . . . . . . . . . . . . Escape Stasis 45 | . . . . . . . . . 13 . . . . . 24 . . . 8 Rewire . | . . . . . . . . . . . . . . . . . . . . Trap . | . . . . . . . . . . . . . . . . . . . . Miscellaneous 24 | . . . . . . . . . . . . . . . 24 . . . . Route ------- -11/Scrapyard -10/Materials (discovered 2 exits: [*Mat] / [*Min]) -10/Mines -10/Exiles -9/Mines -8/Materials -7/Factory -7/Garrison (discovered 2 exits: *Fac x2) -7/Factory -7/Garrison (discovered 3 exits: *Fac x3) -6/Factory (discovered 2 exits: *Fac / Gar) -6/Garrison (discovered 3 exits: *Fac x3) -6/Factory (discovered 3 exits: *Fac / [*Low] / Gar) -6/Garrison -5/Factory (discovered 3 exits: *Fac x2 / *Ext) -5/Extension (discovered 2 exits: *Fac / *Cet) -5/Cetus -5/Archives (discovered 3 exits: *Fac / *Hub x2) -5/Hub_04(d) (discovered 2 exits: *Fac / Gar) -5/Garrison History --------- Turn | Location | Event 8 | -11/Scrapyard | Discovered new exit (range 15) 80 | -11/Scrapyard | Entered Materials 305 | -10/Materials | Build established: Mutant 321 | -10/Materials | Discovered new exit (range 15) 769 | -10/Materials | Discovered new exit (range 7) 787 | -10/Materials | Entered Mines 795 | -10/Mines | Learned 4 Materials zone layouts 813 | -10/Mines | Met a Derelict bent on vengeance 843 | -10/Mines | Found a damaged Exp. Sensor Array with a note attached 880 | -10/Mines | Assembled infested the area 885 | -10/Mines | Assisted by a Guerilla fighting off Assembled 970 | -10/Mines | Learned location of Mines (-9) 1026 | -10/Mines | Deemed a non-threat by the Exiles lab entrance 1027 | -10/Mines | Discovered new exit (range 5) 1034 | -10/Mines | Entered Exiles 1073 | -10/Exiles | Met 8R-AWN 1102 | -10/Exiles | Met EX-HEX 1151 | -10/Exiles | Met EX-BIN 1169 | -10/Exiles | Aligned with FarCom system 1170 | -10/Exiles | Given EX-Vault access code 1210 | -10/Exiles | Opened EX-Vault 1225 | -10/Exiles | Found Cloak of Protection 1260 | -10/Exiles | Warned to stay clear of 0b10 Research branches 1305 | -10/Exiles | Met EX-DEC 1409 | -10/Exiles | Learned location of Zion (-6) 1487 | -10/Exiles | Discovered new exit (range 14) 1504 | -10/Exiles | Left Exiles lab with Cloak of Protection 1504 | -10/Exiles | Entered Mines 1665 | -9/Mines | Received a Rocket Launcher from a helpful Derelict 1810 | -9/Mines | Met a Derelict who couldn't figure out how to use a Trap Extractor 1894 | -9/Mines | Discovered new exit (range 10) 1910 | -9/Mines | Entered Materials 1910 | -8/Materials | Evolved 4 slots: Propulsion x2, Utility x2 2089 | -8/Materials | Repaired Imp. Treads 2461 | -8/Materials | Destroyed 7 combat bots 2688 | -8/Materials | Discovered new exit (range 5) 2703 | -8/Materials | Entered Factory 2703 | -7/Factory | Evolved 2 slots: Weapon x2 3235 | -7/Factory | Build established: Tank 3378 | -7/Factory | Found Prototype Launcher 3378 | -7/Factory | Identified Rocket Array 3382 | -7/Factory | Found Rocket Array 3697 | -7/Factory | Identified exit to Garrison 3697 | -7/Factory | Entered Garrison 3987 | -7/Garrison | Garrison Relay disabled 4179 | -7/Garrison | Triggered checkpoint 4218 | -7/Garrison | Triggered checkpoint 4329 | -7/Garrison | Discovered new exit (range 8) 4409 | -7/Garrison | Triggered checkpoint 4493 | -7/Garrison | Garrison Relay disabled 4582 | -7/Garrison | Triggered checkpoint 4644 | -7/Garrison | Discovered new exit (range 12) 4655 | -7/Garrison | Installed Relay Interface Framework 4684 | -7/Garrison | Entered Factory 4959 | -7/Factory | Build established: Bothacker-Tank 4989 | -7/Factory | Identified exit to Garrison 4989 | -7/Factory | Entered Garrison 5107 | -7/Garrison | Triggered checkpoint 5153 | -7/Garrison | Triggered checkpoint 5317 | -7/Garrison | Discovered new exit (range 14) 5430 | -7/Garrison | Expanded RIF knowledge: Zone Cloak 5583 | -7/Garrison | Triggered checkpoint 5597 | -7/Garrison | Triggered checkpoint 5700 | -7/Garrison | Discovered new exit (range 13) 5747 | -7/Garrison | Triggered checkpoint 5809 | -7/Garrison | Found embedded Infiltrators 5842 | -7/Garrison | Discovered new exit (range 78) 5842 | -7/Garrison | Discovered new exit (range 52) 5842 | -7/Garrison | Discovered new exit (range 7) 5852 | -7/Garrison | Garrison Relay disabled 6072 | -7/Garrison | Lost 9 parts (4n1u4w) 6140 | -7/Garrison | Lost 4 parts (1n2u1w) 6266 | -7/Garrison | Triggered checkpoint 6299 | -7/Garrison | Garrison Relay disabled 6515 | -7/Garrison | Garrison Relay disabled 6555 | -7/Garrison | Entered Factory 6555 | -6/Factory | Evolved 2 slots: Utility x2 6747 | -6/Factory | Build established: Bothacker-Skirmisher 7486 | -6/Factory | Discovered new exit (range 10) 7528 | -6/Factory | Identified exit to Factory 7605 | -6/Factory | First assault squad dispatched 7779 | -6/Factory | Lost 3 parts (1p1n1u) 7783 | -6/Factory | Lost 5 allies 8213 | -6/Factory | Identified exit to Garrison 8225 | -6/Factory | Entered Garrison 8225 | -6/Garrison | Accompanied by 3 allies 8256 | -6/Garrison | Expanded RIF knowledge: Threat Obfuscation 8289 | -6/Garrison | Triggered checkpoint 8372 | -6/Garrison | Garrison Relay disabled 8395 | -6/Garrison | Triggered checkpoint 8514 | -6/Garrison | Lost 3 allies 8526 | -6/Garrison | Triggered checkpoint 8601 | -6/Garrison | Triggered checkpoint 8636 | -6/Garrison | Discovered new exit (range 3) 8727 | -6/Garrison | Discovered new exit (range 3) 8813 | -6/Garrison | Triggered checkpoint 8834 | -6/Garrison | Garrison Relay disabled 8987 | -6/Garrison | Discovered new exit (range 10) 8999 | -6/Garrison | Triggered checkpoint 9028 | -6/Garrison | Garrison Relay disabled 9075 | -6/Garrison | Entered Factory 9075 | -6/Factory | Accompanied by 2 allies 9939 | -6/Factory | Discovered new exit (range 3) 10007 | -6/Factory | Cargo convoy interrupted 10234 | -6/Factory | Discovered exit to Factory (range 14) 10266 | -6/Factory | Garrison activated, responded to threat 10298 | -6/Factory | Lost 6 allies 10319 | -6/Factory | Identified exit to Garrison 10319 | -6/Factory | Entered Garrison 10319 | -6/Garrison | Accompanied by 4 allies 10395 | -6/Garrison | Triggered checkpoint 10400 | -6/Garrison | Lost 4 allies 10503 | -6/Garrison | Garrison Relay disabled 10543 | -6/Garrison | Triggered checkpoint 10586 | -6/Garrison | Triggered checkpoint 10611 | -6/Garrison | Spotted B-75 Beast 10624 | -6/Garrison | Allies destroyed B-75 Beast 10641 | -6/Garrison | Triggered checkpoint 10705 | -6/Garrison | Triggered checkpoint 10741 | -6/Garrison | Lost 4 allies 10771 | -6/Garrison | Triggered checkpoint 10797 | -6/Garrison | Garrison Relay disabled 10908 | -6/Garrison | Discovered exit to Factory (range 8) 10924 | -6/Garrison | Expanded RIF knowledge: Autoassimilate 11111 | -6/Garrison | Entered Factory 11111 | -5/Factory | Accompanied by 3 allies 11111 | -5/Factory | Evolved 2 slots: Utility x2 11351 | -5/Factory | Lost 5 allies 11356 | -5/Factory | Discovered new exit (range 14) 11411 | -5/Factory | First assault squad dispatched 11428 | -5/Factory | Build established: Botlord-Tank 11671 | -5/Factory | Lost 4 parts (1p1n2u) 12129 | -5/Factory | Discovered new exit (range 11) 12163 | -5/Factory | Build established: Bothacker-Tank 12346 | -5/Factory | Repaired Imp. System Restoration Module 12413 | -5/Factory | Identified exit to Factory 12685 | -5/Factory | Build established: Bothacker-Skirmisher 13570 | -5/Factory | Discovered new exit (range 11) 13583 | -5/Factory | Entered Extension 13583 | -5/Extension | Accompanied by 1 ally 13590 | -5/Extension | Disrupted transfer network 13846 | -5/Extension | Local machine network offline 13995 | -5/Extension | Spotted B-75 Beast 14000 | -5/Extension | Destroyed B-75 Beast 14004 | -5/Extension | Spotted B-75 Beast 14021 | -5/Extension | Destroyed B-75 Beast 14042 | -5/Extension | Destroyed 7 combat bots 14139 | -5/Extension | Build established: Bothacker-Tank 14483 | -5/Extension | First assault squad dispatched 14565 | -5/Extension | Lost 11 allies 14588 | -5/Extension | Rescued a captive Derelict 14734 | -5/Extension | Rescued a captive Derelict 14734 | -5/Extension | Rescued a captive Derelict 14855 | -5/Extension | Rescued A7 15364 | -5/Extension | Discovered exit to Factory (range 10) 15365 | -5/Extension | Discovered new exit (range 6) 15417 | -5/Extension | Lost 4 allies 15423 | -5/Extension | Entered Cetus 15423 | -5/Cetus | Accompanied by 7 allies (A7) 15428 | -5/Cetus | Acquired a Cetus Manufacturing Module code from A7 15450 | -5/Cetus | Spotted Cetus Guard 15450 | -5/Cetus | Spotted Cetus Guard 15453 | -5/Cetus | Spotted Cetus Guard 15453 | -5/Cetus | Spotted Cetus Guard 15463 | -5/Cetus | Destroyed Cetus Guard 15474 | -5/Cetus | Allies destroyed Cetus Guard 15476 | -5/Cetus | Core integrity fell below 50% 15485 | -5/Cetus | Allies destroyed Cetus Guard 15498 | -5/Cetus | Lost 6 allies 15499 | -5/Cetus | Destroyed Cetus Guard 15626 | -5/Cetus | Started Cetus Manufacturing Module 15651 | -5/Cetus | Manufactured an Enhanced Grunt 15676 | -5/Cetus | Manufactured an Enhanced Grunt 15701 | -5/Cetus | Manufactured an Enhanced Grunt 15726 | -5/Cetus | Manufactured an Enhanced Grunt 15751 | -5/Cetus | Manufactured an Enhanced Grunt 15768 | -5/Cetus | Escorted A7 to Cetus Mainframe 15826 | -5/Cetus | Discovered new exit (range 16) 15834 | -5/Cetus | Build established: Scavenger-Tank 15848 | -5/Cetus | Entered Archives 15848 | -5/Archives | Accompanied by 6 allies (A7) 15853 | -5/Archives | Received a hacking code to weaken MAIN.C 15894 | -5/Archives | Unable to access archive contents 15907 | -5/Archives | Discovered exit to Factory (range 14) 15920 | -5/Archives | Unable to access archive contents 15927 | -5/Archives | Discovered new exit (range 14) 15939 | -5/Archives | Unable to access archive contents 15957 | -5/Archives | Unable to access archive contents 15963 | -5/Archives | Discovered new exit (range 16) 16179 | -5/Archives | Entered Hub_04(d) 16179 | -5/Hub_04(d) | Accompanied by 5 allies 16258 | -5/Hub_04(d) | Discovered exit to Factory (range 11) 16481 | -5/Hub_04(d) | Identified exit to Garrison 16544 | -5/Hub_04(d) | Local machine network offline 16714 | -5/Hub_04(d) | Disrupted transfer network 16779 | -5/Hub_04(d) | First assault squad dispatched 16959 | -5/Hub_04(d) | Lost 3 allies 17086 | -5/Hub_04(d) | Entered Garrison 17167 | -5/Garrison | Triggered checkpoint 17232 | -5/Garrison | Lost 4 parts (1n3u) 17245 | -5/Garrison | Garrison Relay disabled 17383 | -5/Garrison | Crushed by falling debris 17383 | -5/Garrison | System corruption reached 10% 17406 | -5/Garrison | Core integrity fell below 20% 17407 | -5/Garrison | Crushed by falling debris 17416 | -5/Garrison | Lost 6 allies 17426 | -5/Garrison | Crushed by falling debris 17457 | -5/Garrison | Lost 15 parts (1p3n6u5w) 17476 | -5/Garrison | Destroyed by Y-64 Sentinel with KE Penetrator Last Messages --------------- 17448_ Slug penetrates Earth. 17448_ Y-64 Sentinel misfires. 17448_ Slug penetrates Earth. 17452_ Y-64 Sentinel IFF system glitched. 17452_ Penetrated by Slug. 17454_ The unstable cave ceiling collapses. 17454_ Y-64 Sentinel crushed by falling debris. 17455_ Slug penetrates Earth. 17459_ Imp. System Restoration Module destroyed. 17459_ Penetrated by Slug. 17463_ Imp. Treads destroyed. 17463_ Slug penetrates Earth. 17464_ The unstable cave ceiling collapses. 17464_ System corrupted: Enh. Gauss Cannon jammed. 17465_ System corrupted: Matter fused (-10). 17467_ Penetrated by Slug. 17468_ The unstable cave ceiling collapses. 17473_ Slug penetrates Wall. 17476_ Penetrated by Slug. Map ----- +----------------------------------------------------+ | ?????????????????????????????????????????????????? | | ?????????????????????????????????????????????????? | | ?????????????????????????????????????????????????? | | ?????????????????????????????????????????????????? | | ?????????????????????????????????????????????????? | | ?????????????????????????????????????????????????? | | ?????????????????????????????????????????????????? | | ?????????????????????????????????????????????????? | | ?????????????????????????????????????????????????? | | ?????????????????????????????????????????????????? | | ???????????????????????? ???????????????????????? | | ???????????????????????? ???????????????????????? | | ???????????????????????? ???????????????????????? | | ???????????????????????# ???????????????????????? | | ???????????????????????# ??h????????????????????? | | ???????????????????????# ???????#???????????????? | | ???????????????????????# ???????# ??????????????? | | ???????????????????????# #??????# ?????????????? | | ???????????????????????# #??????# ????????????? | | ???????????????????????# #??????# ############# | | ?????????????????????### #??????# | | ?????????????????????? #??????# ^ | | ??????????????????????? ######## ^ | | ???????????????????????## #Y # ################## | | ???????????????????????# #Y ## ####??# #??????? | | ???????????????????????#"@"## #### #??????? | | ???????????????????????#" "## # # ###""######## | | ???????????????????????#" # # #=b! ! | | ???????????????????????#"""########## ## | | ???????????????????????#####????????##### * ##### | | ???????????????????????????????????????#"" ""#??# | | ???????????????????????????????????????#######??## | | ?????????????????????????????????????????????????? | | ?????????????????????????????????????????????????? | | ?????????????????????????????????????????????????? | | ?????????????????????????????????????????????????? | | ?????????????????????????????????????????????????? | | ?????????????????????????????????????????????????? | | ?????????????????????????????????????????????????? | | ?????????????????????????????????????????????????? | | ?????????????????????????????????????????????????? | | ?????????????????????????????????????????????????? | | ?????????????????????????????????????????????????? | | ?????????????????????????????????????????????????? | | ?????????????????????????????????????????????????? | | ?????????????????????????????????????????????????? | | ?????????????????????????????????????????????????? | | ?????????????????????????????????????????????????? | | ?????????????????????????????????????????????????? | | ?????????????????????????????????????????????????? | +----------------------------------------------------+ Best States ------------- Heat Dissipation 56 Energy Generation 23 Energy Capacity 900 Matter Stores 423 Matter Capacity 500 Sight Range 16 Terrain Scan Density 210 Jamming Range 14 Base Temperature (-) 200 Armor Coverage 1050 Evasion (%) 55 Targeting Accuracy 5 Launcher Accuracy 30 Recoil Reduction 4 Offensive Hacking 24 Relay Coupler Types 5 Relay Coupler Value 144 Item Schematics ----------------- Imp. Datajack | -8/Materials | Scanalyzed Robot Schematics ------------------ None Fabricated ------------ Nothing Alien Tech Used ----------------- None Achievements -------------- Beloved Factory Defaults Main Advantage Prison Break Project G-00 Pwned Challenges ------------ None Game ------ Seed FocalPhysicsDoomcannon Manual? 0 Play Time 03:16:33 Cumulative 147.6 hours Start 2024.05.03 @ 17:45:06 End 2024.05.04 @ 13:21:35 Sessions 5 Manual Loads 0 Difficulty Rogue Special Mode None Game No. 150 Rogue 145 Adventurer 5 Explorer 0 Win Type - Total 3 Types 2/0/0/1/0/0/0/0/0 Lore% 52 Gallery% 70 Achievement% 53 Wizard Run 0 Options --------- Layout 1 ASCII 0 Keyboard 0 Movement Arrows Keybinds 0 Fullscreen 1 Font 24/Terminus Map View 50x35 Zoom Use 0% Tactical HUD 1 Map Filters NONE Filters NONE Steam 1 RUN: 8df19e7e-b894-4d07-bc60-312c82b34f39